{"text_format":"1","workbook":"xlsx","n_sheets":4,"sheets":["Lead_Num","Trail_Num","All_Num","Separate_Num"],"not_rendered":{"charts":0,"images":0,"macros":1,"external_links":0,"defined_names":0,"comments":0,"pivot_tables":0},"unopened":[],"bounds":{"document_bytes":16777216,"sheet_cells":100000,"rows_first":2000,"rows_last":500,"rows_between":2000,"halvings":0,"cell_chars":16384,"cell_head_chars":4096},"cells_cut":0,"cells_raw":0,"read":"whole","date_system":"1900"}

{"sheet":"Lead_Num","index":0,"n_rows":9,"n_cols":3,"rows_kept":9,"cut":false,"hidden":false,"merged":[[1,1,1,3]]}
[]
[null,"VBA to Remove Leading Numbers from String"]
[]
[null,"Old Data","Updated Data"]
[null,"12John12 Cena12",{"$f":"Remove_Lead_Num(B5)","v":"John12 Cena12"}]
[null,"43Roman 34Reigns34",{"$f":"Remove_Lead_Num(B6)","v":"Roman 34Reigns34"}]
[null,"56Seth56 Rollins556",{"$f":"Remove_Lead_Num(B7)","v":"Seth56 Rollins556"}]
[null,"87Dean7887 Ambrose78",{"$f":"Remove_Lead_Num(B8)","v":"Dean7887 Ambrose78"}]
[null,"909Finn 090Balor909",{"$f":"Remove_Lead_Num(B9)","v":"Finn 090Balor909"}]

{"sheet":"Trail_Num","index":1,"n_rows":9,"n_cols":3,"rows_kept":9,"cut":false,"hidden":false,"merged":[[1,1,1,3]]}
[]
[null,"VBA to Remove Trailing Numbers from String"]
[]
[null,"Old Data","Updated Data"]
[null,"12John12 Cena12",{"$f":"Remove_Trail_Num(B5)","v":"12John12 Cena"}]
[null,"43Roman 34Reigns34",{"$f":"Remove_Trail_Num(B6)","v":"43Roman 34Reigns"}]
[null,"56Seth56 Rollins556",{"$f":"Remove_Trail_Num(B7)","v":"56Seth56 Rollins"}]
[null,"87Dean7887 Ambrose78",{"$f":"Remove_Trail_Num(B8)","v":"87Dean7887 Ambrose"}]
[null,"909Finn 090Balor909",{"$f":"Remove_Trail_Num(B9)","v":"909Finn 090Balor"}]

{"sheet":"All_Num","index":2,"n_rows":9,"n_cols":3,"rows_kept":9,"cut":false,"hidden":false,"merged":[[1,1,1,3]]}
[]
[null,"VBA to Remove All Numbers from String"]
[]
[null,"Old Data","Updated Data"]
[null,"12John12 Cena12",{"$f":"Remove_Number(B5)","v":"John Cena"}]
[null,"43Roman 34Reigns34",{"$f":"Remove_Number(B6)","v":"Roman Reigns"}]
[null,"56Seth56 Rollins556",{"$f":"Remove_Number(B7)","v":"Seth Rollins"}]
[null,"87Dean7887 Ambrose78",{"$f":"Remove_Number(B8)","v":"Dean Ambrose"}]
[null,"909Finn 090Balor909",{"$f":"Remove_Number(B9)","v":"Finn Balor"}]

{"sheet":"Separate_Num","index":3,"n_rows":9,"n_cols":3,"rows_kept":9,"cut":false,"hidden":false,"merged":[[1,1,1,3]]}
[]
[null,"VBA to Separate Numbers from String"]
[]
[null,"Data","Marks"]
[null,"John got 80 in test",{"$f":"Separate_Num(B5)","v":"80"}]
[null,"Roman got 70 in test",{"$f":"Separate_Num(B6)","v":"70"}]
[null,"Seth got 25 in test",{"$f":"Separate_Num(B7)","v":"25"}]
[null,"Dean got 18 in test",{"$f":"Separate_Num(B8)","v":"18"}]
[null,"Finn got 100 in test",{"$f":"Separate_Num(B9)","v":"100"}]